Cogmind - Beta 15 @@@ ROGUE MODE // 2025.09.20 @ 06:40:51 Player: Beter Result: Destroyed by D-53 Grenadier with Mini Grenade Launcher Performance ------------- Evolutions (0) 0 Regions Visited (2) 400 Robots Destroyed (3) 15 Value Destroyed (30) 30 Prototype IDs (0) 0 Alien Tech Used (0) 0 Bonus (60) 60 TOTAL SCORE: 505 Bonus ------- Follower Combat Kills 60 Cogmind --------- Core Integrity 0/250 Matter 283/300 Energy 100/100 System Corruption 0% Temperature Cool (0) Movement Core (350) Ox6 Location -10/Mines Parts ------- > --- POWER (1) -------- (None) > --- PROPULSION (2) --- (None) > --- UTILITY (2) ------ Large Storage Unit > --- WEAPON (2) ------- (None) > --- INVENTORY (15) --- Light Ion Engine Light Ion Engine Light Nuclear Core Light Treads Aluminum Leg Aluminum Leg Wheel Wheel Small Storage Unit Small Laser Signal Generator Peak State ------------ > --- POWER ------------ Light Angular Momentum Engine > --- PROPULSION ------- Light Treads Carbon-fiber Leg > --- UTILITY ---------- Improved Heat Sink Large Storage Unit > --- WEAPON ----------- Beamcaster Assault Rifle > --- INVENTORY -------- Ion Engine Light Ion Engine Light Ion Engine Aluminum Leg Aluminum Leg Wheel Wheel Small Storage Unit Small Laser Signal Generator [Rating: 20] Favorites ----------- Power Light Ion Engine Engine Light Ion Engine Propulsion Light Treads Treads Light Treads Leg Carbon-fiber Leg Utility Large Storage Unit Device Improved Heat Sink Storage Large Storage Unit Weapon Assault Rifle Energy Gun Beamcaster Ballistic Gun Assault Rifle Build | -11 -10 -10 ------- Run | Yrd Mat Min Slots Evolved . | . . . Power . | . . . Propulsion . | . . . Utility . | . . . Weapon . | . . . Parts Attached 13 | 6 1 6 Power 3 | 1 . 2 Engine 3 | 1 . 2 Core . | . . . Reactor . | . . . Propulsion 4 | 2 . 2 Treads 2 | 2 . . Leg 2 | . . 2 Wheel . | . . . Hover . | . . . Flight . | . . . Utility 3 | 1 1 1 Device 1 | . . 1 Storage 2 | 1 1 . Processor . | . . . Hackware . | . . . Protection . | . . . Artifact . | . . . Weapon 3 | 2 . 1 Energy Gun 1 | . . 1 Energy Cannon . | . . . Ballistic Gun 2 | 2 . . Ballistic Cannon . | . . . Launcher . | . . . Special Weapon . | . . . Impact Weapon . | . . . Slashing Weapon . | . . . Piercing Weapon . | . . . Special Melee Weapon . | . . . Unidentified Prototypes . | . . . Parts Lost 7 | . . 7 Power 2 | . . 2 Propulsion 2 | . . 2 Utility 1 | . . 1 Weapon 2 | . . 2 Highest Loss Streak 7 | . . 7 To Critical Strikes . | . . . Average Backups 7 | 3 7 9 Power 2 | . 1 3 Propulsion 4 | 2 4 4 Utility . | . . 1 Weapon . | . 1 1 Tool/Special . | . . . Unused Backups 7 | . . 7 Power 2 | . . 2 Propulsion 4 | . . 4 Utility . | . . . Weapon 1 | . . 1 Tool/Special . | . . . Average Slot Usage (%) 89 | . 85 92 Engine 13 | . 14 13 Treads 17 | . 28 12 Leg 10 | . . 16 Device 4 | . . 7 Storage 14 | . 14 14 Energy Gun 5 | . . 8 Ballistic Gun 22 | . 28 19 Peak Build Rating 20 | 6 7 20 Average Rating 10 | 5 6 14 On Entrance 4 | . 6 6 Naked Turns . | . . . Heaviest Build 37 | 12 27 37 Greatest Support 40 | 40 40 40 Greatest Overweight (x) 6 | . . 6 Average Overweight (x) . | . . . Largest Inventory Capacity 15 | 8 15 15 Average Capacity 12 | 6 11 15 Most Carried 12 | 6 8 12 Average Carried 8 | 3 7 10 Final Capacity 15 | 8 15 15 Final Carried 11 | 6 8 11 Class Distribution -------------------- 67% | Mutant 32% | Scavenger-Mutant Dominant Class ---------------- Mutant | -10/Materials Scavenger-Mutant | -10/Mines Resources | -11 -10 -10 ----------- Run | Yrd Mat Min Matter Collected 335 | 181 16 138 Remotely . | . . . Salvage Created 54 | . 54 . Parts 6 | . 6 . Haulers Intercepted . | . . . Recyclers Shooed . | . . . Parts Field Recycled . | . . . Retrieved Matter . | . . . Parts Self-Destructed . | . . . Prevented . | . . . Kills | -11 -10 -10 ------- Run | Yrd Mat Min Combat Hostiles Destroyed 3 | . 3 . Guns 3 | . 3 . Classes Destroyed 1 | . 1 . Swarmer 3 | . 3 . Best Kill Streak 3 | . 3 . Combat Bots Only 3 | . 3 . Max Kills in Single Turn 1 | . 1 . Gunslinging . | . . . Exploded . | . . . Melee . | . . . Uniques/NPCs Destroyed . | . . . Combat | -11 -10 -10 -------- Run | Yrd Mat Min Hostile Shots Fired 43 | . 21 22 Missed 10 | . 7 3 Hits 33 | . 14 19 Projectile 33 | . 14 19 AOE 20 | . . 20 Damage Taken 966 | . 115 851 Core 260 | . 12 248 Absorbed by Shields . | . . . Core Remaining (%) 100 | 100 . . Volleys Fired 10 | . 9 1 Largest 2 | . 2 2 Hottest 95 | . 40 95 Shots Fired 20 | . 18 2 Gun 20 | . 18 2 Cannon . | . . . Launcher . | . . . Special . | . . . Kinetic 19 | . 18 1 Thermal 1 | . . 1 Explosive . | . . . Electromagnetic . | . . . Robot Hit Streak 2 | . 2 . Robot Miss Streak 2 | . 2 2 Penetration Max . | . . . Secondary Targets 1 | . 1 . Max Gunslinging Chain 1 | . 1 . Shots Hit Robots 9 | . 9 . Core Hits 4 | . 4 . Critical Kills . | . . . Critical Parts Destroyed . | . . . Critical Strikes . | . . . Melee Attacks . | . . . Impact . | . . . Slashing . | . . . Piercing . | . . . Sneak Attacks . | . . . Combat Hostiles . | . . . Follow-up Attacks . | . . . Damage Inflicted 109 | . 109 . Guns 109 | . 109 . Cannons . | . . . Explosions . | . . . Melee . | . . . Ramming . | . . . Kinetic 109 | . 109 . Thermal . | . . . Explosive . | . . . Electromagnetic . | . . . Impact . | . . . Slashing . | . . . Piercing . | . . . Highest Corruption . | . . . Average Corruption . | . . . Corruption Purged . | . . . Corruption Blocked . | . . . Overload Shots . | . . . Overflow Damage . | . . . Projectiles . | . . . Explosions . | . . . Melee . | . . . Knockbacks . | . . . Impact . | . . . Kinetic . | . . . Secondary . | . . . Self-Inflicted Damage . | . . . Shots . | . . . Rammed . | . . . Targets Rammed . | . . . Kicked . | . . . Crushed . | . . . Highest Temperature 12 | . . 12 Average Temperature 9 | . . 9 Received Heat Transfer 42 | . 18 24 Siege Activations . | . . . Martial Activations . | . . . Shielding Activations . | . . . Robots Disrupted . | . . . Combat Hostiles . | . . . Robots Corrupted . | . . . Combat Hostiles . | . . . Parts Fried . | . . . Impact Corruptions . | . . . Robots Melted . | . . . Combat Hostiles . | . . . Parts Melted . | . . . Heat Transferred . | . . . Parts Sabotaged . | . . . Parts Stolen . | . . . Parts Stripped . | . . . Power Chain Reactions . | . . . Alert | -11 -10 -10 ------- Run | Yrd Mat Min Maximum Alert Level . | . . . Low Security (%) 100 | 100 100 100 Level 1 . | . . . Level 2 . | . . . Level 3 . | . . . Level 4 . | . . . Level 5 . | . . . High Security . | . . . Max Security . | . . . Peak Influence 70 | . 70 58 Initial 2 | . . 2 Average 13 | . 28 10 Influence Increases 135 | . 77 58 Destroy 0b10 Robot/C 100 | . 60 40 Destroy Leader 20 | . 10 10 Allied During Kill 8 | . . 8 Successful Hack 7 | . 7 . Influence Decreases 135 | . 70 65 Entered New Map 5 | . . 5 Time Decay 130 | . 70 60 Squads Dispatched 3 | . 2 1 Investigation 1 | . 1 . Extermination . | . . . Reinforcement 1 | . 1 . Assault 1 | . . 1 Garrison . | . . . Intercept . | . . . Searches Triggered . | . . . Construction Impeded . | . . . Haulers Reinforced . | . . . Active Scanning Responses . | . . . Cargo Convoy Interrupts . | . . . Stealth | -11 -10 -10 --------- Run | Yrd Mat Min Distress Signals . | . . . Communications Jammed . | . . . Distress Signals . | . . . Times Spotted 10 | . 6 4 Peak Tracking Total 3 | . 3 2 Tactical Retreats . | . . . Traps | -11 -10 -10 ------- Run | Yrd Mat Min Traps Triggered . | . . . Indirectly . | . . . Trap Hack Attempts . | . . . Triggered . | . . . Disarmed . | . . . Reprogrammed . | . . . Reused . | . . . Traps Extracted . | . . . Installed . | . . . Triggered . | . . . Machines | -11 -10 -10 ---------- Run | Yrd Mat Min Machines Disabled . | . . . Max in Single Turn . | . . . Machines Repaired . | . . . Machines Dismantled . | . . . Machines Sabotaged . | . . . Overloaded Fab Kills . | . . . Hacking | -11 -10 -10 --------- Run | Yrd Mat Min Machines Accessed 1 | . 1 . Terminals 1 | . 1 . Fabricators . | . . . Repair Stations . | . . . Recycling Units . | . . . Scanalyzers . | . . . Garrison Access . | . . . Total Hacks 2 | . 2 . Successful 1 | . 1 . Failed 1 | . 1 . Catastrophic 1 | . 1 . Database Lockouts . | . . . Manual 2 | . 2 . Terminals 2 | . 2 . Fabricators . | . . . Repair Stations . | . . . Recycling Units . | . . . Scanalyzers . | . . . Garrison Access . | . . . Terminal Hacks 1 | . 1 . Branch Access Points 1 | . 1 . Fabricator Hacks . | . . . Repair Station Hacks . | . . . Recycling Unit Hacks . | . . . Scanalyzer . | . . . Garrison Access Hacks . | . . . Unauthorized Hacks . | . . . Terminals . | . . . Fabricators . | . . . Repair Stations . | . . . Recycling Units . | . . . Scanalyzers . | . . . Garrison Access . | . . . Data Cores Recovered . | . . . Used . | . . . Hacking Detections 1 | . 1 . Full Trace Events 1 | . 1 . Feedback Events . | . . . Feedback Blocked . | . . . Robot Schematics Acquired . | . . . Robots Built . | . . . Authchips . | . . . Time . | . . . Total Robot Build Rating . | . . . Part Schematics Acquired . | . . . Parts Built . | . . . Authchips . | . . . Time . | . . . Total Part Build Rating . | . . . Parts Repaired . | . . . Time . | . . . Parts Recycled . | . . . Recycled Matter . | . . . Retrieved Matter . | . . . Retrieved Components . | . . . Parts Scanalyzed . | . . . Part Schematics Acquired . | . . . Parts Damaged . | . . . Bothacking | -11 -10 -10 ------------ Run | Yrd Mat Min Used RIF Installer . | . . . Robots Hacked . | . . . Non-combat . | . . . Combat . | . . . Robot Hacks Applied . | . . . Relay Couplers Released . | . . . Fabnet Peak Effective % . | . . . Robots Rewired . | . . . Allies Hacked . | . . . Hacks Repelled . | . . . Allies | -11 -10 -10 -------- Run | Yrd Mat Min Total Allies 4 | . . 4 Largest Group 3 | . . 3 Highest-Rated Group 40 | . . 40 Highest-Rated Ally 31 | . . 31 Total Orders . | . . . Ally Attacks 12 | . . 12 Total Damage 156 | . . 156 Kills 2 | . . 2 Allies Corrupted . | . . . Allies Melted . | . . . Intel | -11 -10 -10 ------- Run | Yrd Mat Min Active Infowar (turns) . | . . . Robot Analysis Total . | . . . Derelict Logs Recovered . | . . . Drone Launches . | . . . Drone Recoveries . | . . . Exploration | -11 -10 -10 ------------- Run | Yrd Mat Min Turns Passed 617 | 92 179 346 Spaces Moved 318 | 51 89 178 Core 4 | 3 . 1 Treads 211 | 48 89 74 Legs 103 | . . 103 Wheels . | . . . Hover . | . . . Flight . | . . . Fastest Speed 50 | 50 160 160 Average Speed 171 | 153 160 183 Slowest Speed 350 | 160 160 350 Overloaded Moves . | . . . Propulsion Burnouts . | . . . Robots Hopped . | . . . Potential Cave-ins . | . . . Cave-ins Triggered . | . . . Exploration Rate (%) 19 | 4 22 31 Regions Visited 2 Branch Regions 1 Pre-discovered Areas . | . . . Known Exits Taken 1 | . 1 . Unknown Exits Taken 1 | 1 . . Scrap Searched . | . . . Spaces Dug . | . . . Terrain Destroyed . | . . . Melee . | . . . Projectile . | . . . AOE . | . . . Terrain Rammed . | . . . Walls Destroyed . | . . . Machines Disabled . | . . . Actions | -11 -10 -10 --------- Run | Yrd Mat Min Total 366 | 62 108 196 Wait 14 | . 8 6 Move 316 | 50 88 178 Hop . | . . . Pick Up 11 | 6 1 4 Fast Attach 8 | 6 1 1 Attach 1 | . . 1 Detach 1 | . 1 . Swap 4 | . . 4 Drop 1 | . . 1 Fire 10 | . 9 1 Melee . | . . . Ram . | . . . Kick . | . . . Crush . | . . . Escape Stasis . | . . . Rewire . | . . . Trap . | . . . Miscellaneous . | . . . Route ------- -11/Scrapyard -10/Materials -10/Mines (discovered 1 exit: [*Mat]) History --------- Turn | Location | Event 28 | -11/Scrapyard | Discovered new exit (range 16) 93 | -11/Scrapyard | Entered Materials 246 | -10/Materials | Discovered new exit (range 12) 249 | -10/Materials | Identified exit to Mines 272 | -10/Materials | Entered Mines 273 | -10/Mines | Met a Derelict testing a Signal Generator 280 | -10/Mines | Found Signal Generator 318 | -10/Mines | Build established: Mutant 358 | -10/Mines | Discovered new exit (range 9) 390 | -10/Mines | Assisted by bots powering up and referring to "LRC-V3" 561 | -10/Mines | Assembled infested the area 566 | -10/Mines | Assisted by a Guerilla fighting off Assembled 606 | -10/Mines | Core integrity fell below 50% 616 | -10/Mines | Core integrity fell below 20% 618 | -10/Mines | Destroyed by D-53 Grenadier with Mini Grenade Launcher Last Messages --------------- 00604_ HV Slug penetrates D-53 Grenadier. 00604_ D-53 Grenadier suffers critical hit (Destroy). 00605_ The unstable cave ceiling collapses. 00606_ HV Slug penetrates D-53 Grenadier. 00606_ D-53 Grenadier knocked back. 00606_ HV Slug penetrates D-53 Grenadier. 00607_ The unstable cave ceiling collapses. 00610_ Carbon-fiber Leg destroyed. 00611_ HV Slug penetrates Wall. 00612_ Ion Engine destroyed. 00613_ The unstable cave ceiling collapses. 00614_ Assault Rifle destroyed. 00615_ HV Slug penetrates D-53 Grenadier. 00615_ D-53 Grenadier suffers critical hit (Destroy). 00615_ Aluminum Leg destroyed. 00616_ Beamcaster destroyed. 00617_ The unstable cave ceiling collapses. 00617_ HV Slug penetrates D-53 Grenadier. Map ----- +----------------------------------------------------+ | ##???????????????????????????????????????? | | ##??????????????????????????????????????? | | ##?????????????????????????????????????? | | ##????????????????????????????????????? | | < ###??????????????????????????????????? | | ##?????????????????????????????????? | | ### ##????????????????????????????????? | | #### [ #????????????????????????????????? | | #????????????????????????????????? | | #????????????????????????????????? | | #????????????????????????????????? | | #### ##???????????????????????????????? | | ##??######?????????#????????????? | | #### ##?# #????????? ##??????????? | | ???## ### #????????? ##?????????? | | ????##= #?????????? #?????????? | | ????## ##?????????? #?????????? | | ???## * ########???????????# ##????????? | | ??## #??????????????????# ##???????? | | ??# #?????????????????## #???????? | | ??# ##????????????????## #???????? | | ??## ##????????????###### ##???????? | | ???### #????????????## # # ##????????? | | ?????# #???????????## ###?????????? | | ?????# #??????????## ##???????????? | | ?????# #?????????## @ ##???????????? | | ?????# #????????## #???????????? | | ?????# #???????## #???????????? | | ?????# #???????# #??????????? | | ?????# #?????### ##??????????? | | ?????# ####### # ##???????????? | | ?????# ## ###????????????? | | ?????# #### # # ###??????????????? | | ?????# #??# # # dd #???????????????? | | ????? #??# # "#???????????????? | | ????####??# # # # ;###???????????????? | | ??????????# ### ##?????????????????? | | ???????#### ## #??????????????????? | | ## ##### %" % #####??????????????????? | | " % ## #?????????????????? | | #????????????????? | | ###### #????????????????? | | ???????### ##????????????????? | | ?????????### ##?????????????????? | | ???????????## ##??????????????????? | | ????????????## ######???????????????????? | | ?????????????####????????????????????????? | | ?????????????????????????????????????????? | | ?????????????????????????????????????????? | | ?????????????????????????????????????????? | +----------------------------------------------------+ Best States ------------- Heat Dissipation 39 Energy Generation 18 Energy Capacity 250 Matter Stores 268 Matter Capacity 300 Sight Range 16 Terrain Scan Density 10 Evasion (%) 40 Recoil Reduction 2 Item Schematics ----------------- None Robot Schematics ------------------ None Fabricated ------------ Nothing Repaired ---------- Nothing Alien Tech Used ----------------- None Achievements -------------- None Challenges ------------ None Game ------ Seed PhaseHypertargetingPod Manual? 0 Play Time 00:09:06 Cumulative 12.3 hours Start 2025.09.20 @ 06:32:43 End 2025.09.20 @ 06:40:51 Sessions 1 Manual Loads 0 Difficulty Rogue Special Mode None Game No. 10 Rogue 10 Adventurer 0 Explorer 0 Win Type - Total 0 Types 0/0/0/0/0/0/0/0/0/0 Lore% 7 Gallery% 15 Achievement% 12 Wizard Run 0 Options --------- Layout 1 ASCII 0 Keyboard 1 Movement Numpad Keybinds 0 Fullscreen 1 Font 24/Smallcaps Map View 50x35 Zoom Use 16% Tactical HUD 1 Map Filters NONE Filters NONE Steam 1 RUN: 53902f53-e463-477a-83a5-2dd43bf5403b